[Event "*** Titled Tuesday Blitz"]
[Site "Chess.com"]
[Date "2020.05.05"]
[Round "5"]
[White "Safar_From_Afar"]
[Black "Kildepiotr"]
[Result "0-1"]
[WhiteElo "2292"]
[BlackElo "2481"]
[TimeControl "180+1"]
[EndTime "10:55:25 PDT"]
[Termination "Kildepiotr won by resignation"]

1. e4 {[%clk 0:03:00.9]} 1... g6 {[%clk 0:02:58.5]} 2. d4 {[%clk 0:02:59]} 2...
Bg7 {[%clk 0:02:59]} 3. Nc3 {[%clk 0:02:59.3]} 3... c6 {[%clk 0:02:59.2]} 4. Bc4
{[%clk 0:02:57.4]} 4... b5 {[%clk 0:02:58.7]} 5. Bb3 {[%clk 0:02:55.7]} 5... b4
{[%clk 0:02:59.1]} 6. Nce2 {[%clk 0:02:54.4]} 6... d5 {[%clk 0:02:58.9]} 7. exd5
{[%clk 0:02:49.8]} 7... cxd5 {[%clk 0:02:59.8]} 8. Nf3 {[%clk 0:02:48.8]} 8...
Nf6 {[%clk 0:02:59.9]} 9. O-O {[%clk 0:02:48.3]} 9... O-O {[%clk 0:03:00]} 10.
a3 {[%clk 0:02:48.3]} 10... bxa3 {[%clk 0:02:59.8]} 11. Rxa3 {[%clk 0:02:47.7]}
11... Nc6 {[%clk 0:02:57.7]} 12. h3 {[%clk 0:02:42.1]} 12... Ne4 {[%clk
0:02:52.1]} 13. Bf4 {[%clk 0:02:38.8]} 13... Bb7 {[%clk 0:02:46.7]} 14. c3
{[%clk 0:02:26.9]} 14... Na5 {[%clk 0:02:45.2]} 15. Ba2 {[%clk 0:02:07]} 15...
e6 {[%clk 0:02:41.9]} 16. Re1 {[%clk 0:02:04.2]} 16... Qb6 {[%clk 0:02:37.4]}
17. Qc1 {[%clk 0:01:59.1]} 17... Rfc8 {[%clk 0:02:35.7]} 18. Ng3 {[%clk
0:01:51.5]} 18... Nxg3 {[%clk 0:02:31.9]} 19. Bxg3 {[%clk 0:01:48.4]} 19... Ba6
{[%clk 0:02:28.1]} 20. Ne5 {[%clk 0:01:45.9]} 20... Nc4 {[%clk 0:02:18.1]} 21.
Bxc4 {[%clk 0:01:44.1]} 21... Bxc4 {[%clk 0:02:17.6]} 22. Nxc4 {[%clk
0:01:00.9]} 22... Rxc4 {[%clk 0:02:14.7]} 23. Be5 {[%clk 0:00:59.1]} 23... Bxe5
{[%clk 0:02:09.6]} 24. Rxe5 {[%clk 0:00:57.8]} 24... Rb8 {[%clk 0:02:06]} 25.
Re2 {[%clk 0:00:22.7]} 25... Qxd4 {[%clk 0:02:02.9]} 26. Qa1 {[%clk 0:00:21.7]}
26... Qd3 {[%clk 0:01:56.7]} 27. Re3 {[%clk 0:00:21.6]} 27... Qd2 {[%clk
0:01:52.1]} 28. b4 {[%clk 0:00:17.7]} 28... d4 {[%clk 0:01:36.5]} 29. Ra2 {[%clk
0:00:17.9]} 29... dxe3 {[%clk 0:01:34.1]} 30. Rxd2 {[%clk 0:00:17]} 30... exd2
{[%clk 0:01:35]} 31. Qd1 {[%clk 0:00:15]} 31... Rd8 {[%clk 0:01:33.4]} 0-1

[Event "*** Titled Tuesday Blitz"]
[Site "Chess.com"]
[Date "2020.05.05"]
[Round "5"]
[White "Spring199"]
[Black "tan275"]
[Result "1-0"]
[WhiteElo "2358"]
[BlackElo "2184"]
[TimeControl "180+1"]
[EndTime "10:55:27 PDT"]
[Termination "Spring199 won by resignation"]

1. d4 {[%clk 0:03:00.9]} 1... Nf6 {[%clk 0:02:59.5]} 2. c4 {[%clk 0:03:00.4]}
2... e6 {[%clk 0:02:59.2]} 3. Nf3 {[%clk 0:02:59.6]} 3... d5 {[%clk 0:02:59.5]}
4. g3 {[%clk 0:02:59]} 4... dxc4 {[%clk 0:02:48]} 5. Bg2 {[%clk 0:02:58.1]} 5...
c5 {[%clk 0:02:47.7]} 6. O-O {[%clk 0:02:53.5]} 6... Nc6 {[%clk 0:02:47.3]} 7.
dxc5 {[%clk 0:02:27.9]} 7... Qxd1 {[%clk 0:02:47.1]} 8. Rxd1 {[%clk 0:02:28.8]}
8... Bxc5 {[%clk 0:02:47.4]} 9. Nbd2 {[%clk 0:02:26]} 9... c3 {[%clk 0:02:26.3]}
10. bxc3 {[%clk 0:02:24.7]} 10... O-O {[%clk 0:02:25.6]} 11. Nb3 {[%clk
0:02:17.1]} 11... Bb6 {[%clk 0:02:23.3]} 12. Nfd4 {[%clk 0:02:04.7]} 12... Bd7
{[%clk 0:02:16.2]} 13. Bg5 {[%clk 0:02:03.9]} 13... Nxd4 {[%clk 0:02:08]} 14.
Nxd4 {[%clk 0:02:01.3]} 14... Nd5 {[%clk 0:01:59.8]} 15. Rac1 {[%clk 0:01:52.9]}
15... Rac8 {[%clk 0:01:55.1]} 16. c4 {[%clk 0:01:45.9]} 16... Nb4 {[%clk
0:01:31]} 17. Be7 {[%clk 0:01:29.5]} 17... Nxa2 {[%clk 0:01:26.7]} 18. Rc2
{[%clk 0:01:29]} 18... Rfe8 {[%clk 0:01:20.7]} 19. Rxa2 {[%clk 0:01:01.7]} 19...
Rxe7 {[%clk 0:01:20]} 20. Bxb7 {[%clk 0:01:00.6]} 20... Rxc4 {[%clk 0:01:17.7]}
21. Nf3 {[%clk 0:00:59.9]} 21... Bc8 {[%clk 0:01:10.4]} 22. Ne5 {[%clk
0:00:42.6]} 22... Rcc7 {[%clk 0:01:01.4]} 23. Rd8+ {[%clk 0:00:38]} 1-0

[Event "*** Titled Tuesday Blitz"]
[Site "Chess.com"]
[Date "2020.05.05"]
[Round "5"]
[White "enriquetejedor"]
[Black "atwalcb"]
[Result "1-0"]
[WhiteElo "2470"]
[BlackElo "2234"]
[TimeControl "180+1"]
[EndTime "10:55:28 PDT"]
[Termination "enriquetejedor won by resignation"]

1. e4 {[%clk 0:00:21.5]} 1... d6 {[%clk 0:03:00.9]} 2. d4 {[%clk 0:00:20.3]}
2... Nf6 {[%clk 0:03:01.3]} 3. f3 {[%clk 0:00:17.4]} 3... e5 {[%clk 0:03:00.4]}
4. Ne2 {[%clk 0:00:12.8]} 4... c6 {[%clk 0:02:58.3]} 5. Be3 {[%clk 0:00:11.7]}
5... Nbd7 {[%clk 0:02:58]} 6. c4 {[%clk 0:00:08.6]} 6... a5 {[%clk 0:02:56]} 7.
Nbc3 {[%clk 0:00:07.7]} 7... Be7 {[%clk 0:02:55.3]} 8. g4 {[%clk 0:00:05.6]}
8... h6 {[%clk 0:02:55.1]} 9. h4 {[%clk 0:00:04.6]} 9... Qc7 {[%clk 0:02:55]}
10. Qd2 {[%clk 0:00:02.6]} 10... a4 {[%clk 0:02:54]} 11. Rc1 {[%clk 0:00:02.1]}
11... exd4 {[%clk 0:02:52.3]} 12. Nxd4 {[%clk 0:00:03]} 12... Ne5 {[%clk
0:02:52.3]} 13. Be2 {[%clk 0:00:03.3]} 13... Be6 {[%clk 0:02:51.6]} 14. Nxe6
{[%clk 0:00:02.8]} 14... fxe6 {[%clk 0:02:51.8]} 15. Kf1 {[%clk 0:00:02.3]}
15... Rf8 {[%clk 0:02:48.2]} 16. Kg2 {[%clk 0:00:02.7]} 16... Nfd7 {[%clk
0:02:43.8]} 17. Rcf1 {[%clk 0:00:02.7]} 17... O-O-O {[%clk 0:02:40.2]} 18. f4
{[%clk 0:00:02.8]} 18... Ng6 {[%clk 0:02:39.9]} 19. g5 {[%clk 0:00:01.8]} 19...
Qa5 {[%clk 0:02:31.7]} 20. h5 {[%clk 0:00:01.9]} 20... hxg5 {[%clk 0:02:25.2]}
21. hxg6 {[%clk 0:00:01.7]} 21... gxf4 {[%clk 0:02:26.1]} 22. Bxf4 {[%clk
0:00:02.1]} 22... e5 {[%clk 0:02:25]} 23. Nd5 {[%clk 0:00:02.3]} 23... Qxd2
{[%clk 0:02:03.1]} 24. Nxe7+ {[%clk 0:00:02]} 24... Kc7 {[%clk 0:02:04]} 25.
Bxd2 {[%clk 0:00:02.7]} 25... Nf6 {[%clk 0:02:04.1]} 26. Nf5 {[%clk 0:00:02.9]}
26... Nxe4 {[%clk 0:02:03.7]} 27. Be3 {[%clk 0:00:02.8]} 27... Rf6 {[%clk
0:02:01.3]} 28. Nh4 {[%clk 0:00:02.3]} 28... d5 {[%clk 0:01:53.1]} 29. Rxf6
{[%clk 0:00:01.6]} 29... Nxf6 {[%clk 0:01:53.2]} 30. cxd5 {[%clk 0:00:02.5]}
30... cxd5 {[%clk 0:01:53.4]} 31. Rc1+ {[%clk 0:00:02.8]} 31... Kb8 {[%clk
0:01:53.5]} 32. Bg5 {[%clk 0:00:03.7]} 32... Rd6 {[%clk 0:01:51.8]} 33. Nf5
{[%clk 0:00:03.5]} 33... Re6 {[%clk 0:01:50.4]} 34. Nxg7 {[%clk 0:00:03.6]}
34... Ne4 {[%clk 0:01:51.1]} 35. Nxe6 {[%clk 0:00:03.5]} 1-0

[Event "*** Titled Tuesday Blitz"]
[Site "Chess.com"]
[Date "2020.05.05"]
[Round "5"]
[White "Nbk90"]
[Black "rogapa"]
[Result "1-0"]
[WhiteElo "2506"]
[BlackElo "2687"]
[TimeControl "180+1"]
[EndTime "10:55:29 PDT"]
[Termination "Nbk90 won by resignation"]

1. Nf3 {[%clk 0:03:00.9]} 1... d5 {[%clk 0:02:59.7]} 2. g3 {[%clk 0:03:01.8]}
2... e6 {[%clk 0:03:00.6]} 3. Bg2 {[%clk 0:03:02]} 3... Nf6 {[%clk 0:03:01.5]}
4. O-O {[%clk 0:03:02.3]} 4... Be7 {[%clk 0:03:02.4]} 5. d3 {[%clk 0:03:00.7]}
5... O-O {[%clk 0:03:03.3]} 6. Nbd2 {[%clk 0:03:00.3]} 6... Nc6 {[%clk
0:03:03.1]} 7. e4 {[%clk 0:02:56]} 7... dxe4 {[%clk 0:03:02.5]} 8. Nxe4 {[%clk
0:02:54.3]} 8... Nxe4 {[%clk 0:03:01.8]} 9. dxe4 {[%clk 0:02:55.2]} 9... Qxd1
{[%clk 0:03:01.8]} 10. Rxd1 {[%clk 0:02:54.5]} 10... e5 {[%clk 0:03:02.7]} 11.
c3 {[%clk 0:02:53.6]} 11... Be6 {[%clk 0:03:02.3]} 12. Ng5 {[%clk 0:02:45.2]}
12... Bxg5 {[%clk 0:02:55.2]} 13. Bxg5 {[%clk 0:02:46.1]} 13... f6 {[%clk
0:02:56.1]} 14. Be3 {[%clk 0:02:45.7]} 14... Rfd8 {[%clk 0:02:57]} 15. f3 {[%clk
0:02:43]} 15... Rxd1+ {[%clk 0:02:52.3]} 16. Rxd1 {[%clk 0:02:43.9]} 16... Bxa2
{[%clk 0:02:53.2]} 17. Rd7 {[%clk 0:02:36.6]} 17... Rd8 {[%clk 0:02:20.8]} 18.
Rxc7 {[%clk 0:02:23.4]} 18... Na5 {[%clk 0:02:16.2]} 19. Kf2 {[%clk 0:01:56.5]}
19... Rd1 {[%clk 0:01:58.6]} 20. Bf1 {[%clk 0:01:50.8]} 20... Rb1 {[%clk
0:01:42.5]} 21. b4 {[%clk 0:01:46.5]} 21... Rb2+ {[%clk 0:01:39.8]} 22. Kg1
{[%clk 0:01:43.4]} 22... Nc6 {[%clk 0:01:38.4]} 23. Rxb7 {[%clk 0:01:34.2]}
23... Rb1 {[%clk 0:01:18.9]} 24. Kg2 {[%clk 0:01:26.4]} 24... Rb2+ {[%clk
0:01:18.1]} 25. Bf2 {[%clk 0:01:25]} 25... h5 {[%clk 0:01:06.9]} 26. b5 {[%clk
0:01:21.5]} 26... Na5 {[%clk 0:01:06.2]} 27. Rxa7 {[%clk 0:01:20.9]} 27... Nc4
{[%clk 0:00:59.7]} 28. Rxa2 {[%clk 0:01:05.3]} 28... Ne3+ {[%clk 0:00:57.8]} 29.
Kg1 {[%clk 0:01:05.4]} 29... Rxa2 {[%clk 0:00:53.7]} 30. Bxe3 {[%clk 0:01:05]}
1-0

[Event "*** Titled Tuesday Blitz"]
[Site "Chess.com"]
[Date "2020.05.05"]
[Round "5"]
[White "violetflower04"]
[Black "oneshot007"]
[Result "0-1"]
[WhiteElo "2207"]
[BlackElo "2407"]
[TimeControl "180+1"]
[EndTime "10:55:29 PDT"]
[Termination "oneshot007 won by resignation"]

1. b3 {[%clk 0:03:00.9]} 1... Nf6 {[%clk 0:02:59]} 2. Bb2 {[%clk 0:03:01.8]}
2... g6 {[%clk 0:02:59.9]} 3. Nf3 {[%clk 0:03:01.3]} 3... Bg7 {[%clk 0:03:00.2]}
4. e3 {[%clk 0:03:02.2]} 4... O-O {[%clk 0:03:00.4]} 5. Be2 {[%clk 0:03:02.4]}
5... d6 {[%clk 0:02:54.6]} 6. O-O {[%clk 0:03:02.5]} 6... e5 {[%clk 0:02:53.5]}
7. d4 {[%clk 0:03:02.9]} 7... e4 {[%clk 0:02:50.3]} 8. Nfd2 {[%clk 0:03:03]}
8... Re8 {[%clk 0:02:50.1]} 9. c4 {[%clk 0:03:03]} 9... c6 {[%clk 0:02:50.1]}
10. Nc3 {[%clk 0:02:56.1]} 10... h5 {[%clk 0:02:46.6]} 11. d5 {[%clk 0:02:38.6]}
11... c5 {[%clk 0:02:42.2]} 12. h3 {[%clk 0:02:09]} 12... Bf5 {[%clk 0:02:38.1]}
13. g4 {[%clk 0:02:06.8]} 13... hxg4 {[%clk 0:01:56.6]} 14. hxg4 {[%clk
0:02:07.7]} 14... Nxg4 {[%clk 0:01:54.8]} 15. Bxg4 {[%clk 0:02:06.2]} 15... Qg5
{[%clk 0:01:54.8]} 16. Ncxe4 {[%clk 0:01:26]} 16... Bxe4 {[%clk 0:01:42.8]} 17.
Nxe4 {[%clk 0:01:19.8]} 17... Rxe4 {[%clk 0:01:41.9]} 18. f4 {[%clk 0:01:19.9]}
18... Qh4 {[%clk 0:01:22.5]} 19. Bxg7 {[%clk 0:01:14.6]} 19... Rxe3 {[%clk
0:01:14]} 20. Bf3 {[%clk 0:00:52.1]} 20... Kxg7 {[%clk 0:01:01.2]} 21. Qd2
{[%clk 0:00:49.7]} 21... Nd7 {[%clk 0:00:40.9]} 22. Qxe3 {[%clk 0:00:48.3]}
22... Qg3+ {[%clk 0:00:40.7]} 0-1

[Event "*** Titled Tuesday Blitz"]
[Site "Chess.com"]
[Date "2020.05.05"]
[Round "5"]
[White "Justinz"]
[Black "AustrianFalcon"]
[Result "0-1"]
[WhiteElo "2340"]
[BlackElo "2502"]
[TimeControl "180+1"]
[EndTime "10:55:34 PDT"]
[Termination "AustrianFalcon won by resignation"]

1. e4 {[%clk 0:03:00.9]} 1... c5 {[%clk 0:02:56.6]} 2. Nf3 {[%clk 0:03:00.6]}
2... e6 {[%clk 0:02:56.4]} 3. d4 {[%clk 0:03:00.5]} 3... cxd4 {[%clk 0:02:57.3]}
4. Nxd4 {[%clk 0:03:00.7]} 4... Bc5 {[%clk 0:02:57.8]} 5. Nb3 {[%clk 0:02:59.4]}
5... Bb6 {[%clk 0:02:56.2]} 6. Nc3 {[%clk 0:02:57.9]} 6... Ne7 {[%clk
0:02:51.6]} 7. Qg4 {[%clk 0:02:41.5]} 7... O-O {[%clk 0:02:50.4]} 8. Bg5 {[%clk
0:02:28]} 8... f6 {[%clk 0:02:42.4]} 9. Bh6 {[%clk 0:02:22.6]} 9... Ng6 {[%clk
0:02:40.8]} 10. Bd2 {[%clk 0:02:21.7]} 10... f5 {[%clk 0:02:36]} 11. exf5 {[%clk
0:02:20.5]} 11... Rxf5 {[%clk 0:02:36.9]} 12. f3 {[%clk 0:02:16.3]} 12... Nc6
{[%clk 0:02:30.2]} 13. h4 {[%clk 0:02:08.4]} 13... d5 {[%clk 0:02:26]} 14. O-O-O
{[%clk 0:02:01]} 14... Bd7 {[%clk 0:02:18.8]} 15. h5 {[%clk 0:01:54.2]} 15...
Nge5 {[%clk 0:02:17]} 16. Qh3 {[%clk 0:01:53.4]} 16... Rc8 {[%clk 0:02:14.7]}
17. Kb1 {[%clk 0:01:42.1]} 17... Na5 {[%clk 0:02:10.5]} 18. h6 {[%clk
0:01:26.3]} 18... g6 {[%clk 0:02:09.1]} 19. f4 {[%clk 0:01:23.6]} 19... Nec4
{[%clk 0:02:05.4]} 20. Bc1 {[%clk 0:01:23.5]} 20... Rh5 {[%clk 0:02:02.3]} 21.
Qxh5 {[%clk 0:01:13.9]} 21... gxh5 {[%clk 0:02:00.7]} 22. Rxh5 {[%clk
0:01:13.2]} 22... Qf6 {[%clk 0:01:57.6]} 23. Bd3 {[%clk 0:01:06.5]} 23... Be3
{[%clk 0:01:41.1]} 24. Rg5+ {[%clk 0:00:51.2]} 24... Kh8 {[%clk 0:01:34.9]} 25.
Nxa5 {[%clk 0:00:49.3]} 25... Bxc1 {[%clk 0:01:30.3]} 26. Nxc4 {[%clk
0:00:43.9]} 26... dxc4 {[%clk 0:01:29.5]} 27. Bxc4 {[%clk 0:00:30.4]} 27... Bxf4
{[%clk 0:01:24.5]} 28. Rg4 {[%clk 0:00:27.5]} 28... Rxc4 {[%clk 0:01:15.8]} 29.
Rxd7 {[%clk 0:00:26.9]} 29... Bxh6 {[%clk 0:01:13.8]} 30. a3 {[%clk 0:00:25]}
30... Rxg4 {[%clk 0:01:12.6]} 0-1

[Event "*** Titled Tuesday Blitz"]
[Site "Chess.com"]
[Date "2020.05.05"]
[Round "5"]
[White "Jadeit90"]
[Black "Charlottemillard17"]
[Result "1-0"]
[WhiteElo "2381"]
[BlackElo "1428"]
[TimeControl "180+1"]
[EndTime "10:55:45 PDT"]
[Termination "Jadeit90 won by checkmate"]

1. e4 {[%clk 0:02:55.9]} 1... e5 {[%clk 0:02:59.8]} 2. Nc3 {[%clk 0:02:56]} 2...
Bc5 {[%clk 0:02:55.7]} 3. Nf3 {[%clk 0:02:55.7]} 3... d6 {[%clk 0:02:54.8]} 4.
d4 {[%clk 0:02:53.6]} 4... exd4 {[%clk 0:02:53.5]} 5. Nxd4 {[%clk 0:02:47.6]}
5... Nf6 {[%clk 0:02:52.2]} 6. Nb3 {[%clk 0:02:45]} 6... Bb6 {[%clk 0:02:49]} 7.
Bd3 {[%clk 0:02:43.8]} 7... O-O {[%clk 0:02:46.9]} 8. O-O {[%clk 0:02:43.7]}
8... h6 {[%clk 0:02:46.5]} 9. h3 {[%clk 0:02:42.7]} 9... Nc6 {[%clk 0:02:43]}
10. Qe2 {[%clk 0:02:40.2]} 10... Re8 {[%clk 0:02:39.9]} 11. Be3 {[%clk
0:02:36.3]} 11... Bd7 {[%clk 0:02:34]} 12. Bxb6 {[%clk 0:02:34.8]} 12... axb6
{[%clk 0:02:33.8]} 13. Rae1 {[%clk 0:02:33.9]} 13... Nb4 {[%clk 0:02:20.4]} 14.
a3 {[%clk 0:02:33]} 14... Nxd3 {[%clk 0:02:17.9]} 15. cxd3 {[%clk 0:02:32.7]}
15... Bc6 {[%clk 0:02:12]} 16. f4 {[%clk 0:02:32.1]} 16... Nd7 {[%clk
0:02:00.5]} 17. Nd4 {[%clk 0:02:13.8]} 17... Ba4 {[%clk 0:01:14.6]} 18. Nf5
{[%clk 0:01:59.7]} 18... Bc6 {[%clk 0:01:04.4]} 19. Qg4 {[%clk 0:01:59.5]} 19...
Qf6 {[%clk 0:01:00.3]} 20. Ne2 {[%clk 0:01:55.7]} 20... Kh7 {[%clk 0:00:46.6]}
21. Ned4 {[%clk 0:01:49.9]} 21... g6 {[%clk 0:00:42.7]} 22. e5 {[%clk
0:01:33.5]} 22... dxe5 {[%clk 0:00:39.1]} 23. fxe5 {[%clk 0:01:33.8]} 23... Rxe5
{[%clk 0:00:34.6]} 24. Ne3 {[%clk 0:01:29.3]} 24... Qd6 {[%clk 0:00:24.4]} 25.
Rxf7+ {[%clk 0:01:25.8]} 25... Kg8 {[%clk 0:00:21.6]} 26. Nc4 {[%clk 0:01:19.9]}
26... Qd5 {[%clk 0:00:18.5]} 27. Qxg6+ {[%clk 0:01:10.5]} 27... Kh8 {[%clk
0:00:17.7]} 28. Qh7# {[%clk 0:01:10.6]} 1-0

[Event "*** Titled Tuesday Blitz"]
[Site "Chess.com"]
[Date "2020.05.05"]
[Round "5"]
[White "DrVitman"]
[Black "Sven_Tica"]
[Result "1-0"]
[WhiteElo "2512"]
[BlackElo "2700"]
[TimeControl "180+1"]
[EndTime "10:55:50 PDT"]
[Termination "DrVitman won by resignation"]

1. e4 {[%clk 0:03:00.9]} 1... c5 {[%clk 0:03:00.3]} 2. Nc3 {[%clk 0:03:00.6]}
2... Nc6 {[%clk 0:02:59.2]} 3. Bb5 {[%clk 0:02:59.9]} 3... Nd4 {[%clk
0:02:59.4]} 4. Nf3 {[%clk 0:02:59.4]} 4... Nxb5 {[%clk 0:02:57.9]} 5. Nxb5
{[%clk 0:02:58.7]} 5... d6 {[%clk 0:02:58.6]} 6. d4 {[%clk 0:02:57.7]} 6... a6
{[%clk 0:02:59.3]} 7. Nc3 {[%clk 0:02:57.2]} 7... cxd4 {[%clk 0:02:59.9]} 8.
Qxd4 {[%clk 0:02:58.1]} 8... e5 {[%clk 0:02:59.2]} 9. Qd3 {[%clk 0:02:51.1]}
9... h6 {[%clk 0:02:59.7]} 10. b3 {[%clk 0:02:44.2]} 10... Nf6 {[%clk
0:02:57.9]} 11. Ba3 {[%clk 0:02:41.6]} 11... Be6 {[%clk 0:02:47.1]} 12. O-O-O
{[%clk 0:02:39]} 12... Qa5 {[%clk 0:02:30.6]} 13. Bb2 {[%clk 0:02:22.6]} 13...
Be7 {[%clk 0:02:26.4]} 14. Kb1 {[%clk 0:02:13.1]} 14... Qc5 {[%clk 0:02:16.8]}
15. Qe2 {[%clk 0:02:07.3]} 15... Rc8 {[%clk 0:02:11.7]} 16. Ne1 {[%clk
0:02:02.3]} 16... O-O {[%clk 0:02:03.9]} 17. Nd3 {[%clk 0:01:58]} 17... Qa5
{[%clk 0:01:54.1]} 18. Qd2 {[%clk 0:01:54.4]} 18... Rfe8 {[%clk 0:01:50.7]} 19.
f4 {[%clk 0:01:39.7]} 19... exf4 {[%clk 0:01:44.3]} 20. Nxf4 {[%clk 0:01:40.6]}
20... Ng4 {[%clk 0:01:26.6]} 21. h3 {[%clk 0:01:35.8]} 21... Ne5 {[%clk
0:01:26.3]} 22. Ncd5 {[%clk 0:01:33]} 22... Qxd2 {[%clk 0:01:23.1]} 23. Nxe7+
{[%clk 0:01:31.2]} 23... Rxe7 {[%clk 0:01:23]} 24. Rxd2 {[%clk 0:01:32.1]} 24...
g5 {[%clk 0:01:13.7]} 25. Nh5 {[%clk 0:01:23]} 25... f5 {[%clk 0:01:13.8]} 26.
Rxd6 {[%clk 0:01:15.1]} 26... Nf7 {[%clk 0:01:12.3]} 27. Nf6+ {[%clk 0:01:05.7]}
27... Kf8 {[%clk 0:01:11.2]} 28. Rb6 {[%clk 0:01:05.3]} 28... Rc6 {[%clk
0:00:27.1]} 29. Rxc6 {[%clk 0:01:03.5]} 29... bxc6 {[%clk 0:00:28]} 30. exf5
{[%clk 0:00:57.9]} 30... Bxf5 {[%clk 0:00:26]} 31. Ba3 {[%clk 0:00:57.9]} 1-0

[Event "*** Titled Tuesday Blitz"]
[Site "Chess.com"]
[Date "2020.05.05"]
[Round "5"]
[White "EvgenyRomanov"]
[Black "PSvidler"]
[Result "0-1"]
[WhiteElo "2647"]
[BlackElo "3038"]
[TimeControl "180+1"]
[EndTime "10:55:53 PDT"]
[Termination "PSvidler won by resignation"]

1. e4 {[%clk 0:03:00.9]} 1... c5 {[%clk 0:02:43.4]} 2. Nf3 {[%clk 0:03:00.2]}
2... e6 {[%clk 0:02:20.8]} 3. b3 {[%clk 0:02:58.7]} 3... a6 {[%clk 0:02:01]} 4.
Bb2 {[%clk 0:02:58]} 4... Nc6 {[%clk 0:01:55.5]} 5. Qe2 {[%clk 0:02:47.1]} 5...
Nf6 {[%clk 0:01:44.9]} 6. e5 {[%clk 0:02:43.2]} 6... Nd5 {[%clk 0:01:36.4]} 7.
g3 {[%clk 0:02:39.4]} 7... b5 {[%clk 0:01:32.1]} 8. Bg2 {[%clk 0:02:35.7]} 8...
Bb7 {[%clk 0:01:28.3]} 9. O-O {[%clk 0:02:33.7]} 9... Be7 {[%clk 0:01:05.4]} 10.
c4 {[%clk 0:02:33.4]} 10... bxc4 {[%clk 0:01:05.2]} 11. bxc4 {[%clk 0:02:33]}
11... Nb6 {[%clk 0:01:03]} 12. Nc3 {[%clk 0:02:20.1]} 12... Rb8 {[%clk
0:01:02.7]} 13. Rab1 {[%clk 0:02:18.6]} 13... O-O {[%clk 0:00:49.2]} 14. Ne4
{[%clk 0:02:18.2]} 14... Nb4 {[%clk 0:00:38.1]} 15. a3 {[%clk 0:02:03.1]} 15...
Bxe4 {[%clk 0:00:37.5]} 16. Qxe4 {[%clk 0:02:00.6]} 16... Nc6 {[%clk 0:00:38.4]}
17. h4 {[%clk 0:01:52.5]} 17... h6 {[%clk 0:00:38]} 18. d3 {[%clk 0:01:44.5]}
18... Qc7 {[%clk 0:00:38.2]} 19. Bc1 {[%clk 0:01:36.5]} 19... Na4 {[%clk
0:00:37.8]} 20. Rxb8 {[%clk 0:01:35.6]} 20... Rxb8 {[%clk 0:00:37.4]} 21. Re1
{[%clk 0:01:31.6]} 21... Rb1 {[%clk 0:00:33.4]} 22. d4 {[%clk 0:01:29.3]} 22...
Nc3 {[%clk 0:00:33.3]} 23. Qc2 {[%clk 0:01:28.7]} 23... cxd4 {[%clk 0:00:33.1]}
24. Nxd4 {[%clk 0:01:24.2]} 24... Nxd4 {[%clk 0:00:33.2]} 25. Qxc3 {[%clk
0:01:24.3]} 25... Bc5 {[%clk 0:00:33.8]} 26. Be4 {[%clk 0:01:17.6]} 26... Rb3
{[%clk 0:00:32.5]} 27. Qd2 {[%clk 0:01:15.3]} 27... Rxg3+ {[%clk 0:00:32.7]} 28.
Kf1 {[%clk 0:01:11.7]} 28... Rg4 {[%clk 0:00:32.8]} 29. Bb2 {[%clk 0:00:59.7]}
29... Qb6 {[%clk 0:00:32]} 30. Rb1 {[%clk 0:00:56.5]} 30... Rxe4 {[%clk
0:00:30.6]} 0-1

[Event "*** Titled Tuesday Blitz"]
[Site "Chess.com"]
[Date "2020.05.05"]
[Round "5"]
[White "ChelsieMonica"]
[Black "Munkhzul_Turmunkh"]
[Result "1-0"]
[WhiteElo "2349"]
[BlackElo "2511"]
[TimeControl "180+1"]
[EndTime "10:55:57 PDT"]
[Termination "ChelsieMonica won by resignation"]

1. c4 {[%clk 0:03:00.9]} 1... e5 {[%clk 0:02:50.5]} 2. Nc3 {[%clk 0:02:59.7]}
2... Nf6 {[%clk 0:02:50.1]} 3. e3 {[%clk 0:02:59.1]} 3... Nc6 {[%clk 0:02:49.4]}
4. Nf3 {[%clk 0:02:57.8]} 4... Bb4 {[%clk 0:02:48.1]} 5. a3 {[%clk 0:02:54.2]}
5... Be7 {[%clk 0:02:45.7]} 6. d4 {[%clk 0:02:51.8]} 6... d6 {[%clk 0:02:44.1]}
7. Be2 {[%clk 0:02:33.3]} 7... O-O {[%clk 0:02:43.5]} 8. O-O {[%clk 0:02:33]}
8... Bf5 {[%clk 0:02:40.7]} 9. b4 {[%clk 0:02:26.8]} 9... e4 {[%clk 0:02:26.3]}
10. Nd2 {[%clk 0:02:20.3]} 10... Re8 {[%clk 0:02:25.6]} 11. b5 {[%clk
0:02:12.4]} 11... Nb8 {[%clk 0:02:24.8]} 12. g4 {[%clk 0:02:07.3]} 12... Bg6
{[%clk 0:02:23.8]} 13. g5 {[%clk 0:01:49.2]} 13... Nfd7 {[%clk 0:02:22.8]} 14.
Ndxe4 {[%clk 0:01:48.4]} 14... Bxg5 {[%clk 0:02:17.4]} 15. Nxg5 {[%clk
0:01:45.7]} 15... Qxg5+ {[%clk 0:02:18.3]} 16. Kh1 {[%clk 0:01:46.6]} 16... Qh4
{[%clk 0:02:15.5]} 17. Bf3 {[%clk 0:01:44.5]} 17... c6 {[%clk 0:02:09.1]} 18. e4
{[%clk 0:01:27.4]} 18... Nf6 {[%clk 0:02:07.6]} 19. Qe2 {[%clk 0:00:58.9]} 19...
Nxe4 {[%clk 0:02:00.2]} 20. Nxe4 {[%clk 0:00:58.1]} 20... Bxe4 {[%clk
0:02:01.1]} 21. Bxe4 {[%clk 0:00:55.8]} 21... Rxe4 {[%clk 0:02:00.3]} 22. Qf3
{[%clk 0:00:55]} 22... Nd7 {[%clk 0:01:59]} 23. bxc6 {[%clk 0:00:54.3]} 23...
bxc6 {[%clk 0:01:58.2]} 24. Rg1 {[%clk 0:00:52.9]} 24... h6 {[%clk 0:01:23.5]}
25. Bxh6 {[%clk 0:00:50.4]} 25... Rae8 {[%clk 0:00:38.1]} 26. Bxg7 {[%clk
0:00:45]} 26... Kh7 {[%clk 0:00:36.3]} 27. Qf5+ {[%clk 0:00:40.7]} 1-0